fUST/lending_fUST_20240820
["ID","MTS","AMOUNT","RATE_DAILY","PERIOD"]
[335351404,1724153467849,-151.0,0.00019178,2]
[335351405,1724153467859,-151.0,0.00019178,2]
[335351406,1724153467869,-151.0,0.00019178,2]
[335351407,1724153467878,-151.0,0.00019178,2]
[335351408,1724153467889,-220.209297,0.00019178,2]
[335351409,1724153467899,-1200.0,0.00019189,2]
[335351410,1724153467909,-5870.59,0.000192,2]
[335351411,1724153467918,-2100.0,0.00019207,2]
[335351412,1724153467928,-500.0,0.0001921,2]
[335351413,1724153467937,-2100.0,0.00019237,2]
[335351414,1724153467948,-3400.0,0.00019237,2]
[335351415,1724153467957,-500.0,0.00019288,2]
[335351416,1724153467967,-700.0,0.00019339,2]
[335351417,1724153467977,-2100.0,0.0001938,2]
[335351418,1724153467986,-800.0,0.00019387,2]
[335351419,1724153467996,-500.0,0.0001945,2]
[335351420,1724153468008,-500.0,0.00019452,2]
[335351421,1724153468018,-921.91,0.00019452,2]
[335351422,1724153468028,-734.18,0.00019452,2]
[335351423,1724153468038,-261.06229854,0.00019452,2]
[335351424,1724153468050,-500.0,0.00019452,2]
[335351425,1724153468060,-591.36,0.00019452,2]
[335351426,1724153468069,-500.0,0.00019452,2]
[335351427,1724153468079,-789.51,0.00019452,2]
[335351428,1724153468088,-291.02554956,0.00019452,2]
[335351429,1724153468098,-1868.22,0.00019452,2]
[335351430,1724153468108,-500.0,0.00019452,2]
[335351431,1724153468119,-528.98791894,0.00019452,2]
[335351432,1724153468130,-1012.95,0.00019452,2]
[335351433,1724153468140,-500.0,0.00019452,2]
[335351434,1724153468151,-500.0,0.00019452,2]
[335351435,1724153468160,-500.0,0.00019452,2]
[335351436,1724153468170,-500.0,0.00019452,2]
[335351437,1724153468180,-500.0,0.00019452,2]
[335351438,1724153468191,-500.0,0.00019452,2]
[335351439,1724153468201,-500.0,0.00019452,2]
[335351440,1724153468211,-500.0,0.00019452,2]
[335351441,1724153468220,-563.52,0.00019452,2]
[335351442,1724153468230,-2265.92,0.00019452,2]
[335351443,1724153468240,-500.0,0.00019452,2]
[335351444,1724153468250,-500.0,0.00019452,2]
[335351445,1724153468260,-365.1,0.00019452,2]
[335351446,1724153468272,-309.9,0.00019452,2]
[335351447,1724153468282,-500.0,0.00019452,2]
[335351448,1724153468293,-1063.39,0.00019452,2]
[335351449,1724153468303,-500.0,0.00019452,2]
[335351450,1724153468314,-1413.91,0.00019452,2]
[335351451,1724153468325,-1960.06,0.00019452,2]
[335351452,1724153468336,-211.02407988,0.00019452,2]
[335351453,1724153468346,-500.0,0.00019452,2]
[335351454,1724153468358,-500.0,0.00019452,2]
[335351455,1724153468370,-500.0,0.00019452,2]
[335351456,1724153468380,-1257.78,0.00019452,2]
[335351457,1724153468390,-1331.58,0.00019452,2]
[335351458,1724153468400,-543.53,0.00019452,2]
[335351459,1724153468410,-500.0,0.00019452,2]
[335351460,1724153468420,-529.16,0.00019452,2]
[335351461,1724153468430,-500.0,0.00019452,2]
[335351462,1724153468440,-500.0,0.00019452,2]
[335351463,1724153468450,-3522.39,0.00019452,2]
[335351464,1724153468460,-622.84,0.00019452,2]
[335351465,1724153468470,-500.0,0.00019452,2]
[335351466,1724153468480,-172.49134743,0.00019452,2]
[335351467,1724153468491,-807.05,0.00019452,2]
[335351468,1724153468503,-500.0,0.00019452,2]
[335351469,1724153468512,-500.0,0.00019452,2]
[335351471,1724153468523,-500.0,0.00019452,2]
[335351472,1724153468533,-562.6,0.00019452,2]
[335351473,1724153468544,-842.83,0.00019452,2]
[335351474,1724153468555,-1015.98,0.00019452,2]
[335351475,1724153468566,-6302.46,0.00019452,2]
[335351476,1724153468576,-1119.03,0.00019452,2]
[335351477,1724153468586,-700.0,0.00019457,2]
[335351478,1724153468597,-3400.0,0.00019474,2]
[335351479,1724153468607,-3300.0,0.000195,2]
[335351480,1724153468618,-8020.921836,0.000195,7]
[335351481,1724153468627,-1000.0,0.000195,2]
[335351482,1724153468638,-700.0,0.0001956,2]
[335351483,1724153468650,-321.60592,0.000196,8]
[335351484,1724153468661,-2092.36,0.000196,31]
[335351485,1724153468673,-2092.36,0.000196,31]
[335351486,1724153468685,-2092.36,0.000196,31]
[335351487,1724153468695,-2092.36,0.000196,31]
[335351488,1724153468706,-2092.36,0.000196,31]
[335351489,1724153468720,-2092.36,0.000196,31]
[335351490,1724153468731,-2092.36,0.000196,31]
[335351491,1724153468740,-2092.36,0.000196,31]
[335351492,1724153468750,-2092.36,0.000196,31]
[335351493,1724153468762,-2092.36,0.000196,31]
[335351494,1724153468772,-2092.36,0.000196,31]
[335351495,1724153468782,-2092.36,0.000196,31]
[335351496,1724153468794,-2092.36,0.000196,31]
[335351497,1724153468806,-2092.36,0.000196,31]
[335351498,1724153468817,-2092.36,0.000196,31]
[335351499,1724153468827,-2092.36,0.000196,31]
[335351500,1724153468838,-1200.0,0.00019603,2]
[335351501,1724153468848,-500.0,0.00019607,2]
[335351502,1724153468859,-3400.0,0.00019663,2]
[335351503,1724153468870,-700.0,0.00019687,2]
[335351504,1724153468881,-700.0,0.00019691,2]
[335351505,1724153468893,-632.62162474,0.00019691,2]
[335351506,1724153468904,-700.0,0.00019708,2]
[335351507,1724153468915,-500.0,0.00019709,2]
[335351508,1724153468926,-500.0,0.00019726,2]
[335351509,1724153468936,-921.91,0.00019726,2]
[335351510,1724153468946,-734.18,0.00019726,2]
[335351511,1724153468958,-156.19516866,0.00019726,2]
[335351512,1724153468968,-591.36,0.00019726,2]
[335351513,1724153468978,-500.0,0.00019726,2]
[335351514,1724153468991,-789.51,0.00019726,2]
[335351515,1724153469001,-1868.22,0.00019726,2]
[335351516,1724153469011,-500.0,0.00019726,2]
[335351517,1724153469022,-1012.95,0.00019726,2]
[335351518,1724153469031,-500.0,0.00019726,2]
[335351519,1724153469044,-500.0,0.00019726,2]
[335351520,1724153469053,-500.0,0.00019726,2]
[335351521,1724153469062,-500.0,0.00019726,2]
[335351522,1724153469073,-500.0,0.00019726,2]
[335351523,1724153469084,-500.0,0.00019726,2]
[335351524,1724153469096,-485.75164508,0.00019726,2]
[335351525,1724153469105,-500.0,0.00019726,2]
[335351526,1724153469115,-563.52,0.00019726,2]
[335351527,1724153469124,-2265.92,0.00019726,2]
[335351528,1724153469136,-500.0,0.00019726,2]
[335351529,1724153469146,-500.0,0.00019726,2]
[335351530,1724153469156,-500.0,0.00019726,2]
[335351531,1724153469165,-1063.39,0.00019726,2]
[335351532,1724153469175,-500.0,0.00019726,2]
[335351533,1724153469186,-1413.91,0.00019726,2]
[335351534,1724153469196,-1960.06,0.00019726,2]
[335351535,1724153469207,-500.0,0.00019726,2]
[335351536,1724153469216,-500.0,0.00019726,2]
[335351537,1724153469226,-500.0,0.00019726,2]
[335351538,1724153469236,-1257.78,0.00019726,2]
[335351539,1724153469245,-1331.58,0.00019726,2]
[335351540,1724153469255,-543.53,0.00019726,2]
[335351541,1724153469264,-436.62837868,0.00019726,2]
[335351542,1724153469274,-529.16,0.00019726,2]
[335351543,1724153469283,-500.0,0.00019726,2]
[335351544,1724153469295,-500.0,0.00019726,2]
[335351545,1724153469304,-3522.39,0.00019726,2]
[335351546,1724153469314,-622.84,0.00019726,2]
[335351547,1724153469324,-500.0,0.00019726,2]
[335351548,1724153469334,-807.05,0.00019726,2]
[335351549,1724153469343,-500.0,0.00019726,2]
[335351550,1724153469353,-500.0,0.00019726,2]
[335351551,1724153469363,-500.0,0.00019726,2]
[335351552,1724153469373,-562.6,0.00019726,2]
[335351553,1724153469383,-842.83,0.00019726,2]
[335351554,1724153469392,-1015.98,0.00019726,2]
[335351555,1724153469402,-6302.46,0.00019726,2]
[335351556,1724153469412,-1119.03,0.00019726,2]
[335351557,1724153469422,-2100.0,0.00019733,2]
[335351558,1724153469432,-500.0,0.00019738,2]
[335351559,1724153469442,-500.0,0.00019742,2]
[335351560,1724153469546,-500.0,0.00019757,2]
[335351561,1724153469557,-1200.0,0.00019829,2]
[335351562,1724153469567,-2100.0,0.00019851,2]
[335351563,1724153469578,-1200.0,0.00019859,2]
[335351564,1724153469588,-500.0,0.0001988,2]
[335351565,1724153469598,-3500.0,0.000199,2]
[335351566,1724153469607,-700.0,0.00019912,2]
[335351567,1724153469617,-3400.0,0.00019917,2]
[335351568,1724153469627,-700.0,0.00019942,2]
[335351569,1724153469638,-1200.0,0.00019976,2]
[335351570,1724153469648,-700.0,0.00019978,2]
[335351571,1724153469658,-500.0,0.00019983,2]
[335351572,1724153469669,-7996.89787357,0.0001999,2]
[335351573,1724153469678,-15645.72354677,0.0002,2]
[335351574,1724153469688,-156.64423531,0.0002,2]
[335351575,1724153469698,-74689.64,0.0002,2]
[335351576,1724153469709,-420.79,0.0002,2]
[335351577,1724153469721,-500.0,0.0002,2]
[335351578,1724153469734,-154.69833824,0.0002,2]
[335351579,1724153469744,-3300.0,0.0002,2]
[335351580,1724153469755,-4362.46,0.0002,2]
[335351581,1724153469767,-154.69833824,0.0002,2]
[335351582,1724153469777,-435.0,0.0002,2]
[335351583,1724153469787,-271.52215472,0.0002,2]
[335351584,1724153469803,-154.82679353,0.0002,2]
[335351585,1724153469814,-159.21419697,0.0002,2]
[335351586,1724153469824,-217.59795092,0.0002,2]
[335351587,1724153469835,-155.00319319,0.0002,2]
[335351588,1724153469847,-400.65645487,0.0002,2]
[335351589,1724153469858,-126484.46680121,0.0002,2]
[335351590,1724153469870,-520.80499792,0.0002,2]
[335351591,1724153469883,-4355.69991225,0.0002,2]
[335351592,1724153469894,-20173.51038931,0.0002,2]
[335351593,1724153469904,-182.5,0.0002,2]
[335351594,1724153469916,-174.63720972,0.0002,2]
[335351595,1724153469926,-992.09924077,0.0002,2]
[335351596,1724153469936,-8842.31671975,0.0002,2]
[335351597,1724153469946,-154.89311412,0.0002,2]
[335351598,1724153469956,-300.0,0.0002,4]
[335351599,1724153469966,-2800.0,0.0002,2]
[335351600,1724153469976,-500.0,0.0002,2]
[335351601,1724153469987,-921.91,0.0002,2]
[335351602,1724153469997,-734.18,0.0002,2]
[335351603,1724153470007,-591.36,0.0002,2]
[335351604,1724153470018,-275.97082633,0.0002,2]
[335351605,1724153470029,-789.51,0.0002,2]
[335351606,1724153470039,-200.0,0.0002,2]
[335351607,1724153470050,-1868.22,0.0002,2]
[335351608,1724153470059,-968.94537386,0.0002,2]
[335351609,1724153470068,-500.0,0.0002,2]
[335351610,1724153470077,-1012.95,0.0002,2]
[335351611,1724153470087,-283.11063343,0.0002,2]
[335351612,1724153470097,-287.49000296,0.0002,2]
[335351613,1724153470107,-500.0,0.0002,2]
[335351614,1724153470120,-305.249749,0.0002,2]
[335351615,1724153470129,-500.0,0.0002,2]
[335351616,1724153470139,-500.0,0.0002,2]
[335351617,1724153470149,-500.0,0.0002,2]
[335351618,1724153470159,-563.52,0.0002,2]
[335351619,1724153470168,-151.30332686,0.0002,2]
[335351620,1724153470178,-2265.92,0.0002,2]
[335351621,1724153470189,-500.0,0.0002,2]
[335351622,1724153470201,-500.0,0.0002,2]
[335351623,1724153470212,-500.0,0.0002,2]
[335351624,1724153470222,-1063.39,0.0002,2]
[335351625,1724153470234,-500.0,0.0002,2]
[335351626,1724153470243,-150.0,0.0002,2]
[335351627,1724153470254,-1413.91,0.0002,2]
[335351628,1724153470266,-1960.06,0.0002,2]
[335351629,1724153470278,-500.0,0.0002,2]
[335351630,1724153470287,-500.0,0.0002,2]
[335351631,1724153470300,-426.01250803,0.0002,2]
[335351632,1724153470310,-1257.78,0.0002,2]
[335351633,1724153470320,-1331.58,0.0002,2]
[335351634,1724153470330,-543.53,0.0002,2]
[335351635,1724153470340,-529.16,0.0002,2]
[335351636,1724153470351,-500.0,0.0002,2]
[335351637,1724153470361,-500.0,0.0002,2]
[335351638,1724153470371,-3522.39,0.0002,2]
[335351639,1724153470381,-622.84,0.0002,2]
[335351640,1724153470391,-4381.0,0.0002,2]
[335351641,1724153470401,-500.0,0.0002,2]
[335351642,1724153470411,-7484.0,0.0002,2]
[335351643,1724153470420,-807.05,0.0002,2]
[335351644,1724153470430,-500.0,0.0002,2]
[335351645,1724153470439,-828.80041013,0.0002,2]
[335351646,1724153470451,-500.0,0.0002,2]
[335351647,1724153470461,-450.23678246,0.0002,2]
[335351648,1724153470473,-562.6,0.0002,2]
[335351649,1724153470483,-1000.0,0.0002,2]
[335351650,1724153470493,-842.83,0.0002,2]
[335351651,1724153470505,-1015.98,0.0002,2]
[335351652,1724153470516,-6302.46,0.0002,2]
[335351653,1724153470526,-93.43518772,0.0002,2]
[335351654,1724153470678,-1025.59481228,0.0002,2]
[335351655,1724153470689,-1200.0,0.00020016,2]
[335351656,1724153470699,-3400.0,0.00020017,2]
[335351657,1724153470710,-500.0,0.00020043,2]
[335351658,1724153470723,-1200.0,0.0002007,2]
[335351659,1724153470734,-3400.0,0.00020074,2]
[335351660,1724153470744,-3400.0,0.00020092,2]
[335351661,1724153470754,-500.0,0.00020105,2]
[335351662,1724153470765,-700.0,0.0002011,2]
[335351663,1724153470775,-700.0,0.00020145,2]
[335351664,1724153470785,-2100.0,0.00020164,2]
[335351665,1724153470797,-500.0,0.00020186,2]
[335351666,1724153470807,-3400.0,0.00020201,2]
[335351667,1724153470817,-2100.0,0.00020218,2]
[335351668,1724153470827,-500.0,0.00020232,2]
[335351669,1724153470836,-3400.0,0.00020261,2]
[335351670,1724153470846,-500.0,0.00020273,2]
[335351671,1724153470856,-921.91,0.00020273,2]
[335351672,1724153470868,-734.18,0.00020273,2]
[335351673,1724153470880,-591.36,0.00020273,2]
[335351674,1724153470892,-789.51,0.00020273,2]
[335351675,1724153470903,-1868.22,0.00020273,2]
[335351676,1724153470914,-500.0,0.00020273,2]
[335351677,1724153470926,-1012.95,0.00020273,2]
[335351678,1724153470938,-500.0,0.00020273,2]
[335351679,1724153470947,-500.0,0.00020273,2]
[335351680,1724153470958,-500.0,0.00020273,2]
[335351681,1724153470968,-500.0,0.00020273,2]
[335351682,1724153470980,-563.52,0.00020273,2]
[335351683,1724153470991,-2265.92,0.00020273,2]
[335351684,1724153471002,-500.0,0.00020273,2]
[335351685,1724153471012,-500.0,0.00020273,2]
[335351686,1724153471023,-500.0,0.00020273,2]
[335351687,1724153471033,-1063.39,0.00020273,2]
[335351688,1724153471043,-500.0,0.00020273,2]
[335351689,1724153471055,-1413.91,0.00020273,2]
[335351690,1724153471066,-1960.06,0.00020273,2]
[335351691,1724153471075,-500.0,0.00020273,2]
[335351692,1724153471086,-500.0,0.00020273,2]
[335351693,1724153471098,-1257.78,0.00020273,2]
[335351694,1724153471111,-1331.58,0.00020273,2]
[335351695,1724153471122,-543.53,0.00020273,2]
[335351696,1724153471133,-529.16,0.00020273,2]
[335351697,1724153471144,-500.0,0.00020273,2]
[335351698,1724153471154,-491.47221382,0.00020273,2]
[335351699,1724153471164,-3522.39,0.00020273,2]
[335351700,1724153471174,-622.84,0.00020273,2]
[335351701,1724153471184,-500.0,0.00020273,2]
[335351702,1724153471195,-807.05,0.00020273,2]
[335351703,1724153471205,-500.0,0.00020273,2]
[335351704,1724153471215,-500.0,0.00020273,2]
[335351705,1724153471227,-562.6,0.00020273,2]
[335351706,1724153471239,-842.83,0.00020273,2]
[335351707,1724153471252,-1015.98,0.00020273,2]
[335351708,1724153471264,-6302.46,0.00020273,2]
[335351709,1724153471275,-1119.03,0.00020273,2]
[335351710,1724153471287,-1200.0,0.00020301,2]
[335351711,1724153471300,-700.0,0.00020316,2]
[335351712,1724153471311,-2100.0,0.0002032,2]
[335351713,1724153471322,-153.0,0.00020325,2]
[335351714,1724153471333,-3400.0,0.00020326,2]
[335351715,1724153471344,-3400.0,0.00020343,2]
[335351716,1724153471354,-500.0,0.00020345,2]
[335351717,1724153471365,-3400.0,0.0002035,2]
[335351718,1724153471376,-700.0,0.00020356,2]
[335351719,1724153471386,-500.0,0.00020376,2]
[335351720,1724153471397,-1200.0,0.00020401,2]
[335351721,1724153471410,-669.76434396,0.00020454,2]
[335351722,1724153471420,-3400.0,0.0002046,2]
[335351723,1724153471430,-2100.0,0.0002047,2]
[335351724,1724153471539,-1200.0,0.00020499,2]
[335351725,1724153471550,-1139.51344498,0.00020523,2]
[335351726,1724153471916,-213.11844268,8.883e-05,2]
[335351727,1724153471926,-190.09307092,0.00012999,2]
[335351728,1724153471936,-159.95730847,0.00013051,2]
[335351729,1724153471947,-500.0,0.00016712,2]
[335351730,1724153471958,-500.0,0.00016986,2]
[335351731,1724153471967,-555.11710822,0.0001726,2]
[335351732,1724153471977,-510.03959753,0.00017534,2]
[335351733,1724153471986,-500.0,0.00017534,2]
[335351734,1724153471996,-500.0,0.00017808,2]
[335351735,1724153472006,-500.0,0.00018082,2]
[335351736,1724153472016,-336.04904781,0.00018356,2]
[335351737,1724153472026,-60.48655502,0.00020523,2]
[335351738,1724153472036,-863.1714911,0.00020525,2]
[335351739,1724153472047,-1200.0,0.0002053,2]
[335351740,1724153472057,-1200.0,0.00020535,2]
[335351741,1724153472066,-3670.26828292,0.00020535,2]
[335351742,1724153472076,-700.0,0.00020537,2]
[335351743,1724153472086,-700.0,0.00020546,2]
[335351744,1724153472095,-500.0,0.00020547,2]
[335351745,1724153472105,-921.91,0.00020547,2]
[335351746,1724153472115,-734.18,0.00020547,2]
[335351747,1724153472124,-591.36,0.00020547,2]
[335351748,1724153472133,-789.51,0.00020547,2]
[335351749,1724153472143,-1868.22,0.00020547,2]
[335351750,1724153472153,-500.0,0.00020547,2]
[335351751,1724153472163,-1012.95,0.00020547,2]
[335351752,1724153472173,-500.0,0.00020547,2]
[335351753,1724153472182,-500.0,0.00020547,2]
[335351754,1724153472192,-500.0,0.00020547,2]
[335351755,1724153472202,-388.63576403,0.00020547,2]
[335351756,1724153472211,-563.52,0.00020547,2]
[335351757,1724153472220,-2265.92,0.00020547,2]
[335351758,1724153472230,-206.0847449,0.00020547,2]
[335351759,1724153472241,-500.0,0.00020547,2]
[335351760,1724153472250,-500.0,0.00020547,2]
[335351761,1724153472260,-1063.39,0.00020547,2]
[335351762,1724153472270,-500.0,0.00020547,2]
[335351763,1724153472280,-1413.91,0.00020547,2]
[335351764,1724153472290,-1960.06,0.00020547,2]
[335351765,1724153472302,-500.0,0.00020547,2]
[335351766,1724153472311,-500.0,0.00020547,2]
[335351767,1724153472321,-1331.58,0.00020547,2]
[335351768,1724153472331,-1257.78,0.00020547,2]
[335351769,1724153472342,-543.53,0.00020547,2]
[335351770,1724153472352,-529.16,0.00020547,2]
[335351771,1724153472362,-554.54478804,0.00020547,2]
[335351772,1724153472372,-3522.39,0.00020547,2]
[335351773,1724153472382,-622.84,0.00020547,2]
[335351774,1724153472393,-500.0,0.00020547,2]
[335351775,1724153472402,-807.05,0.00020547,2]
[335351776,1724153472412,-500.0,0.00020547,2]
[335351777,1724153472422,-500.0,0.00020547,2]
[335351778,1724153472432,-562.6,0.00020547,2]
[335351779,1724153472442,-842.83,0.00020547,2]
[335351780,1724153472452,-1015.98,0.00020547,2]
[335351781,1724153472462,-6302.46,0.00020547,2]
[335351782,1724153472472,-1119.03,0.00020547,2]
[335351783,1724153472483,-1943.971076,0.00020548,2]
[335351784,1724153472497,-700.0,0.00020548,2]
[335351785,1724153472507,-2596.60848455,0.00020574,2]
[335351827,1724153739574,258.18032213,0.00021,120]
[335351836,1724153833984,5000.0,7.376e-05,2]
[335351839,1724153849665,2218.470951,7.376e-05,2]
[335351845,1724153883456,245.30609513,7.376e-05,2]
[335351846,1724153887149,258.18032213,0.00021,120]
[335351847,1724153887183,199.21576407,7.376e-05,2]
[335351848,1724153893724,3312.84647178,7.376e-05,2]
[335351849,1724153894244,4720.37412615,7.376e-05,2]
[335351852,1724153907513,16320.59442379,7.376e-05,2]
[335351853,1724153923454,250.0,7.228e-05,2]
[335351854,1724153923636,250.0,7.248e-05,2]
[335351855,1724153923858,250.0,7.267e-05,2]
[335351856,1724153924085,250.0,7.287e-05,2]
[335351857,1724153924331,250.0,7.307e-05,2]
[335351858,1724153924750,250.0,7.327e-05,2]
[335351859,1724153924965,250.0,7.347e-05,2]
[335351860,1724153925190,250.0,7.367e-05,2]
[335351863,1724153945314,218.70409946,7.376e-05,2]
[335351868,1724153968477,155.37252349,7.376e-05,2]
[335351869,1724153970184,939.08236877,7.376e-05,2]
[335351870,1724153971247,822.99961943,7.376e-05,2]
[335351871,1724153972202,405.39053387,7.376e-05,2]
[335351872,1724153977926,2112.29265619,7.376e-05,2]
[335351874,1724154018452,1640.24017386,7.376e-05,2]
[335351875,1724154032579,1658.24571293,7.376e-05,2]
[335351878,1724154072202,938.74390265,7.376e-05,2]
[335351888,1724154096850,3000.0,0.00017549,20]
[335351901,1724154129955,3000.0,0.00017549,20]
[335351904,1724154141317,271.57538297,7.376e-05,2]
[335351906,1724154148274,405.4718388,7.376e-05,2]
[335351911,1724154211039,794.9625342,0.0001755,20]
[335351913,1724154215449,230.15361077,7.376e-05,2]
[335351920,1724154276228,188.32241296,7.376e-05,2]
[335351921,1724154294319,3000.0,0.000191,59]
[335351925,1724154317952,3000.0,0.000191,59]
[335351927,1724154329027,3000.0,0.000191,59]
[335351932,1724154395257,3000.0,0.000191,59]
[335351945,1724154473475,3000.0,0.000191,59]
[335351954,1724154504907,3000.0,0.000191,59]
[335351967,1724154574012,2257.28399498,0.000191,59]
[335351970,1724154607947,250.0,7.069e-05,2]
[335351971,1724154608266,250.0,7.088e-05,2]
[335351972,1724154608645,250.0,7.108e-05,2]
[335351973,1724154608966,250.0,7.127e-05,2]
[335351974,1724154609184,250.0,7.146e-05,2]
[335351975,1724154609388,250.0,7.166e-05,2]
[335351976,1724154609590,250.0,7.185e-05,2]
[335351977,1724154609817,250.0,7.205e-05,2]
[335351978,1724154610035,250.0,7.224e-05,2]
[335351979,1724154610278,250.0,7.243e-05,2]
[335351980,1724154610497,250.0,7.263e-05,2]
[335351981,1724154610711,250.0,7.282e-05,2]
[335351982,1724154610939,250.0,7.302e-05,2]
[335351983,1724154611301,250.0,7.321e-05,2]
[335351984,1724154611537,250.0,7.34e-05,2]
[335351985,1724154611736,250.0,7.36e-05,2]
[335352034,1724154632091,-250.0,7.379e-05,2]
[335352036,1724154632101,-300.0,7.396e-05,2]
[335352038,1724154632111,-7836.30717434,7.397e-05,2]
[335352040,1724154632126,-17063.69282566,7.397e-05,2]
[335352042,1724154632139,-250.0,7.399e-05,2]
[335352044,1724154632150,-250.0,7.418e-05,2]
[335352047,1724154632161,-250.0,7.437e-05,2]
[335352049,1724154632174,-1500.0,7.911e-05,2]
[335352051,1724154632184,-2143.02877073,7.911e-05,2]
[335352053,1724154632194,-850.86713135,7.911e-05,2]
[335352055,1724154632207,-2128.24653365,7.911e-05,2]
[335352057,1724154632218,-728.8710597,7.911e-05,2]
[335352059,1724154632228,-180.81152876,7.911e-05,2]
[335352062,1724154632239,-296.06691994,7.911e-05,2]
[335352063,1724154632249,-154.76012181,7.911e-05,2]
[335352065,1724154632259,-154.77558159,7.911e-05,2]
[335352067,1724154632271,-154.76012181,7.911e-05,2]
[335352069,1724154632280,-342.6945234,7.911e-05,2]
[335352071,1724154632291,-933.89722372,7.911e-05,2]
[335352073,1724154632301,-688.74575077,7.911e-05,2]
[335352075,1724154632311,-351.00751175,7.911e-05,2]
[335352078,1724154632321,-196.83090407,7.911e-05,2]
[335352080,1724154632332,-210.26167047,7.911e-05,2]
[335352082,1724154632342,-156.87056893,7.911e-05,2]
[335352083,1724154632352,-256.26265091,7.911e-05,2]
[335352084,1724154632362,-154.76012181,7.911e-05,2]
[335352085,1724154632372,-154.76012181,7.911e-05,2]
[335352086,1724154632384,-307.3686335,7.911e-05,2]
[335352087,1724154632395,-155.41708141,7.911e-05,2]
[335352088,1724154632406,-154.76012181,7.911e-05,2]
[335352089,1724154632416,-154.89913263,7.911e-05,2]
[335352090,1724154632428,-179.31347406,7.911e-05,2]
[335352091,1724154632438,-404.47284307,7.911e-05,2]
[335352092,1724154632447,-320.30409158,7.911e-05,2]
[335352093,1724154632458,-157.11235205,7.911e-05,2]
[335352094,1724154632468,-166.60619109,7.911e-05,4]
[335352095,1724154632478,-154.76012181,7.911e-05,2]
[335352096,1724154632488,-155.25843996,7.911e-05,2]
[335352097,1724154632498,-422.36012849,7.911e-05,2]
[335352098,1724154632508,-195.88730039,7.911e-05,2]
[335352099,1724154632518,-154.76012181,7.911e-05,2]
[335352100,1724154632528,-154.76012181,7.911e-05,2]
[335352101,1724154632541,-190.09307092,7.911e-05,2]
[335352102,1724154632551,-188.58516866,7.911e-05,2]
[335352103,1724154632562,-154.76012181,7.911e-05,2]
[335352104,1724154632573,-154.76012181,7.911e-05,2]
[335352105,1724154632583,-155.09239564,7.911e-05,2]
[335352106,1724154632592,-155.13851835,7.911e-05,2]
[335352107,1724154632602,-303.91507343,8.019e-05,2]
[335352108,1724154632613,-420.0,8.136e-05,2]
[335352109,1724154632623,-34253.06062069,8.519e-05,2]
[335352110,1724154632636,-736.02,8.519e-05,2]
[335352111,1724154632648,-434.4293937,8.519e-05,2]
[335352122,1724154638090,-662.732602,8.519e-05,2]
[335352124,1724154638146,-6329.66822954,8.519e-05,2]
[335352125,1724154638157,-2712.87069354,8.519e-05,2]
[335352126,1724154638167,-7014.13255051,8.519e-05,2]
[335352127,1724154638179,-9660.2899886,8.521e-05,2]
[335352128,1724154638189,-155.04595458,8.521e-05,2]
[335352129,1724154638199,-2756.80826275,8.769e-05,2]
[335352130,1724154638210,-587.0,8.949e-05,2]
[335352131,1724154638220,-823.0,9.844e-05,2]
[335352132,1724154638230,-2756.80826273,9.951e-05,2]